Cogmind - Beta 14 @@@ ROGUE MODE // 2024.09.06 @ 22:40:11 Player: Helstads_dog Result: Self-destructed Performance ------------- Evolutions (1) 500 Regions Visited (2) 400 Robots Destroyed (67) 335 Value Destroyed (1821) 1821 Prototype IDs (10) 200 Alien Tech Used (0) 0 Bonus (90) 90 TOTAL SCORE: 3346 Bonus ------- High Alert Combat Kills 90 Cogmind --------- Core Integrity 221/400 Matter 207/300 Energy 250/250 System Corruption 0% Temperature Warm (129) Movement Rolling (140) Ox4 Location -9/Materials Parts ------- > --- POWER (1) -------- Ion Engine > --- PROPULSION (2) --- Light Treads Wheel > --- UTILITY (3) ------ Heat Sink Large Storage Unit Medium Armor Plating > --- WEAPON (3) ------- Heavy Assault Rifle Flak Cannon > --- INVENTORY (15) --- Ion Engine Ion Engine Improved Treads Armored Wheel Armored Wheel Heat Sink Improved Heat Sink Hardened Light Armor Plating EM Shotgun Heavy Assault Rifle Flak Cannon Flak Cannon Flak Cannon Grenade Launcher Mining Claw Peak State ------------ > --- POWER ------------ Ion Engine > --- PROPULSION ------- Light Treads Wheel > --- UTILITY ---------- Heat Sink Large Storage Unit Hardened Light Armor Plating > --- WEAPON ----------- Beam Rifle Beam Cannon Flak Cannon > --- INVENTORY -------- Ion Engine Ion Engine Light Treads Light Treads Wheel Heat Sink Improved Heat Sink EM Shotgun Small Laser Heavy Assault Rifle Flak Cannon Flak Cannon Flak Cannon Grenade Launcher Mining Claw [Rating: 15] Favorites ----------- Power Ion Engine Engine Ion Engine Propulsion Wheel Treads Light Treads Leg Aluminum Leg Wheel Wheel Utility Heat Sink Device Heat Sink Storage Huge Storage Unit Processor Visual Processing Unit Protection Light Armor Plating Weapon Beam Cannon Energy Gun Medium Laser Energy Cannon Beam Cannon Ballistic Gun Assault Rifle Ballistic Cannon Flak Cannon Launcher Grenade Launcher Build | -11 -10 -9 ------- Run | Yrd Mat Mat Slots Evolved 2 | . . 2 Power . | . . . Propulsion . | . . . Utility 1 | . . 1 Weapon 1 | . . 1 Parts Attached 43 | . 21 22 Power 4 | . 4 . Engine 4 | . 4 . Core . | . . . Reactor . | . . . Propulsion 7 | . 4 3 Treads 3 | . 1 2 Leg 2 | . 2 . Wheel 2 | . 1 1 Hover . | . . . Flight . | . . . Utility 16 | . 6 10 Device 6 | . 4 2 Storage 2 | . 1 1 Processor 3 | . 1 2 Hackware . | . . . Protection 5 | . . 5 Artifact . | . . . Weapon 16 | . 7 9 Energy Gun 7 | . 2 5 Energy Cannon 3 | . 2 1 Ballistic Gun 3 | . 2 1 Ballistic Cannon 1 | . . 1 Launcher 2 | . 1 1 Special Weapon . | . . . Impact Weapon . | . . . Slashing Weapon . | . . . Piercing Weapon . | . . . Special Melee Weapon . | . . . Unidentified Prototypes . | . . . Parts Lost 5 | . 2 3 Power 1 | . 1 . Propulsion . | . . . Utility . | . . . Weapon 4 | . 1 3 Highest Loss Streak 2 | . 2 2 To Critical Strikes . | . . . Average Slot Usage (%) 99 | . 98 99 Engine 12 | . 13 11 Treads 10 | . 9 11 Leg 3 | . 9 . Wheel 10 | . 9 11 Device 12 | . 13 12 Storage 12 | . 14 11 Processor 1 | . . 2 Protection 4 | . . 7 Energy Gun 13 | . 13 13 Energy Cannon 10 | . 9 10 Ballistic Gun 2 | . 4 1 Ballistic Cannon 4 | . . 7 Peak Build Rating 15 | . 8 15 Average Rating 10 | . 7 13 On Entrance 6 | 6 6 8 Naked Turns . | . . . Heaviest Build 101 | 11 91 101 Greatest Support 20 | 20 20 10 Greatest Overweight (x) 10 | . 9 10 Average Overweight (x) 6 | . 3 7 Largest Inventory Capacity 25 | . 25 25 Average Capacity 20 | . 16 22 Most Carried 19 | . 13 19 Average Carried 12 | . 8 14 Final Capacity 25 | 8 25 15 Final Carried 15 | 6 12 15 Class Distribution -------------------- 43% | Mutant 37% | Scavenger-Tank 11% | Scavenger-Gunner 7% | Scavenger-Skirmisher Dominant Class ---------------- Mutant | -10/Materials Scavenger-Tank | -9/Materials Resources | -11 -10 -9 ----------- Run | Yrd Mat Mat Matter Collected 982 | 176 407 399 Remotely . | . . . Salvage Created 1946 | . 931 1015 Parts 126 | . 65 61 Haulers Intercepted . | . . . Recyclers Shooed . | . . . Parts Field Recycled . | . . . Retrieved Matter . | . . . Parts Self-Destructed . | . . . Prevented . | . . . Kills | -11 -10 -9 ------- Run | Yrd Mat Mat Combat Hostiles Destroyed 54 | . 25 29 Guns 22 | . 13 9 Cannons 24 | . 9 15 AOE 7 | . 3 4 Classes Destroyed 7 | . 5 2 Worker 1 | . . 1 Builder 3 | . 2 1 Operator 1 | . 1 . Watcher 8 | . 3 5 Swarmer 14 | . 6 8 Grunt 34 | . 19 15 Sentry 6 | . . 6 Best Kill Streak 7 | . 4 7 Combat Bots Only 5 | . 3 5 Max Kills in Single Turn 2 | . 2 2 Gunslinging 1 | . 1 . Exploded 2 | . 2 2 Melee . | . . . Uniques/NPCs Destroyed . | . . . Combat | -11 -10 -9 -------- Run | Yrd Mat Mat Hostile Shots Fired 176 | . 94 82 Missed 49 | . 19 30 Damage Taken 1640 | . 823 817 Core 321 | . 142 179 Absorbed by Shields . | . . . Core Remaining (%) 71 | 100 43 . Volleys Fired 133 | . 79 54 Largest 3 | . 2 3 Hottest 160 | . 110 160 Shots Fired 305 | . 150 155 Gun 175 | . 112 63 Cannon 122 | . 33 89 Launcher 8 | . 5 3 Special . | . . . Kinetic 87 | . 41 46 Thermal 210 | . 104 106 Explosive 8 | . 5 3 Electromagnetic . | . . . Robot Hit Streak 16 | . 16 15 Robot Miss Streak 7 | . 3 7 Penetration Max . | . . . Secondary Targets 3 | . 3 . Max Gunslinging Chain 1 | . 1 . Shots Hit Robots 186 | . 96 90 Core Hits 116 | . 48 68 Critical Kills 1 | . . 1 Critical Parts Destroyed . | . . . Critical Strikes 9 | . 3 6 Burn 8 | . 3 5 Meltdown 1 | . . 1 Melee Attacks . | . . . Impact . | . . . Slashing . | . . . Piercing . | . . . Sneak Attacks . | . . . Combat Hostiles . | . . . Follow-up Attacks . | . . . Damage Inflicted 3746 | . 1612 2134 Guns 1565 | . 958 607 Cannons 1442 | . 411 1031 Explosions 739 | . 243 496 Melee . | . . . Ramming . | . . . Kinetic 901 | . 376 525 Thermal 2269 | . 993 1276 Explosive 576 | . 243 333 Electromagnetic . | . . . Impact . | . . . Slashing . | . . . Piercing . | . . . Highest Corruption . | . . . Average Corruption . | . . . Corruption Purged . | . . . Corruption Blocked . | . . . Overload Shots . | . . . Overflow Damage 164 | . 13 151 Projectiles 5 | . 5 . Explosions 159 | . 8 151 Melee . | . . . Knockbacks 12 | . . 12 Impact . | . . . Kinetic 11 | . . 11 Secondary 1 | . . 1 Self-Inflicted Damage 160 | . . 160 Shots 2 | . . 2 Rammed . | . . . Targets Rammed . | . . . Kicked . | . . . Crushed . | . . . Highest Temperature 330 | . 240 330 Average Temperature 94 | . 65 112 Received Heat Transfer 747 | . 399 348 Effects 1 | . . 1 Energy Bleed 1 | . . 1 Siege Activations . | . . . Robots Corrupted . | . . . Combat Hostiles . | . . . Parts Fried . | . . . Impact Corruptions . | . . . Robots Melted 1 | . . 1 Combat Hostiles 1 | . . 1 Parts Melted 13 | . 8 5 Heat Transferred 5666 | . 2738 2928 Parts Sabotaged . | . . . Parts Stolen . | . . . Parts Stripped . | . . . Power Chain Reactions . | . . . Alert | -11 -10 -9 ------- Run | Yrd Mat Mat Peak Influence 644 | . 462 644 Initial 154 | . . 154 Average 300 | . 310 292 Maximum Alert Level 2 | . 2 2 Low Security (%) 23 | . 16 28 Level 1 54 | . 52 55 Level 2 22 | . 31 15 Level 3 . | . . . Level 4 . | . . . Level 5 . | . . . High Security . | . . . Max Security . | . . . Squads Dispatched 9 | . 7 2 Investigation 5 | . 5 . Extermination . | . . . Reinforcement 3 | . 2 1 Assault 1 | . . 1 Garrison . | . . . Intercept . | . . . Searches Triggered . | . . . Construction Impeded . | . . . Haulers Reinforced . | . . . Active Scanning Responses . | . . . Cargo Convoy Interrupts . | . . . Stealth | -11 -10 -9 --------- Run | Yrd Mat Mat Distress Signals 3 | . 2 1 Communications Jammed . | . . . Distress Signals . | . . . Times Spotted 74 | . 33 41 Peak Tracking Total 5 | . 3 5 Tactical Retreats 4 | . 2 2 Traps | -11 -10 -9 ------- Run | Yrd Mat Mat Traps Triggered 3 | . 2 1 Indirectly . | . . . Trap Hack Attempts . | . . . Triggered . | . . . Disarmed . | . . . Reprogrammed . | . . . Reused . | . . . Traps Extracted . | . . . Installed . | . . . Triggered . | . . . Machines | -11 -10 -9 ---------- Run | Yrd Mat Mat Machines Disabled 3 | . . 3 Max in Single Turn 2 | . . 2 Machines Repaired . | . . . Machines Dismantled . | . . . Machines Sabotaged . | . . . Overloaded Fab Kills . | . . . Hacking | -11 -10 -9 --------- Run | Yrd Mat Mat Machines Accessed 18 | . 10 8 Terminals 13 | . 7 6 Fabricators . | . . . Repair Stations 1 | . 1 . Recycling Units 3 | . 2 1 Scanalyzers 1 | . . 1 Garrison Access . | . . . Total Hacks 55 | . 30 25 Successful 29 | . 14 15 Failed 25 | . 15 10 Catastrophic 3 | . 2 1 Database Lockouts 1 | . 1 . Manual 44 | . 27 17 Terminals 48 | . 26 22 Fabricators . | . . . Repair Stations 1 | . 1 . Recycling Units 4 | . 3 1 Scanalyzers 2 | . . 2 Garrison Access . | . . . Terminal Hacks 18 | . 8 10 Record 2 | . 1 1 Robot Analysis 8 | . 5 3 Prototype ID Bank 7 | . 2 5 Locate Traps 1 | . . 1 Fabricator Hacks . | . . . Repair Station Hacks . | . . . Recycling Unit Hacks 2 | . 1 1 Report Inventory 2 | . 1 1 Scanalyzer 1 | . . 1 Insert Component 1 | . . 1 Garrison Access Hacks . | . . . Unauthorized Hacks 8 | . 5 3 Terminals 6 | . 3 3 Botnet 6 | . 3 3 Fabricators . | . . . Repair Stations . | . . . Recycling Units 2 | . 2 . Tunnel 2 | . 2 . Scanalyzers . | . . . Garrison Access . | . . . Data Cores Recovered . | . . . Used . | . . . Hacking Detections 16 | . 8 8 Full Trace Events 1 | . 1 . Feedback Events . | . . . Feedback Blocked . | . . . Robot Schematics Acquired . | . . . Robots Built . | . . . Authchips . | . . . Time . | . . . Total Robot Build Rating . | . . . Part Schematics Acquired . | . . . Parts Built . | . . . Authchips . | . . . Time . | . . . Total Part Build Rating . | . . . Parts Repaired . | . . . Time . | . . . Parts Recycled . | . . . Recycled Matter . | . . . Retrieved Matter . | . . . Retrieved Components . | . . . Parts Scanalyzed 1 | . . 1 Part Schematics Acquired . | . . . Parts Damaged . | . . . Bothacking | -11 -10 -9 ------------ Run | Yrd Mat Mat Used RIF Installer . | . . . Robots Hacked . | . . . Non-combat . | . . . Combat . | . . . Robot Hacks Applied . | . . . Relay Couplers Released . | . . . Fabnet Peak Effective % . | . . . Robots Rewired . | . . . Allies Hacked . | . . . Hacks Repelled . | . . . Allies | -11 -10 -9 -------- Run | Yrd Mat Mat Total Allies . | . . . Largest Group . | . . . Highest-Rated Group . | . . . Highest-Rated Ally . | . . . Total Orders . | . . . Ally Attacks . | . . . Total Damage . | . . . Kills . | . . . Allies Corrupted . | . . . Allies Melted . | . . . Intel | -11 -10 -9 ------- Run | Yrd Mat Mat Robot Analysis Total 8 | . 5 3 Derelict Logs Recovered . | . . . Drone Launches . | . . . Drone Recoveries . | . . . Exploration | -11 -10 -9 ------------- Run | Yrd Mat Mat Turns Passed 3090 | . 1355 1735 Spaces Moved 1376 | 1 660 715 Core . | . . . Treads . | . . . Legs 227 | 1 226 . Wheels 1149 | . 434 715 Hover . | . . . Flight . | . . . Fastest Speed 95 | 120 95 140 Average Speed 176 | 120 153 198 Slowest Speed 230 | 120 215 230 Overloaded Moves . | . . . Propulsion Burnouts . | . . . Robots Hopped . | . . . Cave-ins Triggered . | . . . Exploration Rate (%) 55 | 2 98 65 Regions Visited 2 Branch Regions . Pre-discovered Areas 2 | . 2 . Known Exits Taken 1 | . 1 . Unknown Exits Taken 1 | 1 . . Scrap Searched . | . . . Spaces Dug . | . . . Terrain Destroyed 108 | . 19 89 Melee . | . . . Projectile . | . . . AOE 108 | . 19 89 Terrain Rammed . | . . . Walls Destroyed . | . . . Machines Disabled . | . . . Actions | -11 -10 -9 --------- Run | Yrd Mat Mat Total 1777 | . 861 916 Wait 158 | . 70 88 Move 1374 | . 659 715 Hop . | . . . Pick Up 35 | . 16 19 Fast Attach 4 | . 2 2 Attach 17 | . 7 10 Detach 3 | . 1 2 Swap 22 | . 12 10 Drop 31 | . 15 16 Fire 133 | . 79 54 Melee . | . . . Ram . | . . . Kick . | . . . Crush . | . . . Escape Stasis . | . . . Rewire . | . . . Trap . | . . . Miscellaneous . | . . . Route ------- -11/Scrapyard -10/Materials (discovered 4 exits: *Mat x3 / [*Min]) -9/Materials (discovered 4 exits: *Mat x2 / *Min x2) History --------- Turn | Location | Event 1 | -11/Scrapyard | Discovered new exit (range 0) 1 | -11/Scrapyard | Entered Materials 122 | -10/Materials | Discovered new exit (range 15) 154 | -10/Materials | Identified exit to Materials 301 | -10/Materials | Build established: Mutant 327 | -10/Materials | Discovered new exit (range 13) 882 | -10/Materials | Core integrity fell below 50% 954 | -10/Materials | Discovered exit to Materials (range 16) 1170 | -10/Materials | Central database locked down 1326 | -10/Materials | Discovered exit to Materials (range 7) 1356 | -10/Materials | Entered another Materials area 1356 | -9/Materials | Evolved 2 slots: Utility x1, Weapon x1 1740 | -9/Materials | Discovered new exit (range 7) 2052 | -9/Materials | Discovered new exit (range 3) 2130 | -9/Materials | Build established: Scavenger-Tank 2282 | -9/Materials | Identified exit to Materials 2375 | -9/Materials | Identified exit to Mines 2565 | -9/Materials | Discovered exit to Mines (range 6) 2956 | -9/Materials | First assault squad dispatched 3040 | -9/Materials | Discovered exit to Materials (range 16) 3091 | -9/Materials | Self-destructed Last Messages --------------- 03047_ Connecting with Terminal... >>Prototypes Downloading prototype IDs... Aerolev Unit Adv. Beam Cannon >>Prototypes Downloading prototype IDs... Imp. VTOL Module Adv. EMP Blaster 03064_ Dropped Lgt. Treads. 03065_ Acquired Imp. Treads. 03067_ C-30 ARC bursts open, deploying its payload. 03067_ G-47 Trooper unfolds itself. 03067_ G-34 Mercenary unfolds itself. 03067_ M-13 Machinist unfolds itself. 03073_ G-47 Trooper destroyed. 03077_ G-34 Mercenary destroyed. 03090_ Fusion Modulator explodes. 03090_ Beam Cannon destroyed. 03090_ Destroyed Beam Cannon. Map ----- +----------------------------------------------------+ | ????# [ #??????????????????????? | | ????# #??????????????????????? | | ????# #??????????????????????? | | ????# #??????????????????????? | | ????# #??????????????????????? | | ????# ##?#########???????????? | | ????# ## #???????????? | | ????#### ## """ """ #???????????? | | ???????# ## """ """ #???????????? | | ######## ## """ """ #???????????? | | # # ## #???????????? | | # """ # ## #???????????? | | # """ # ## ! #???????????? | | # """ # ## #######?????? | | # # #########+## #?????? | | # """ # #?????? | | # """ + #?????? | | # """ # #?????? | | # ########+####### #?????? | | # """ #??# T #?## ##?????? | | # """ #??# #??# #??????? | | #[ """ #??# #??# #??????? | | # #### #??# #??????? | | #######; #;##/######### #??????? | | ???## ;;;;! #??????? | | ??#; = @ % #??????? | | ??#; = [; #??????? | | ??#; ; ##+########??????? | | ?# ; ; #????????????????? | | ?# ; ; #????????????????? | | ?# ; ; #????????????????? | | ?##; ; a#????????????????? | | ??#; ; #????????????????? | | ??#;;;; ## #????????????????? | | ??### # ? #????????????????? | | ????##### ? #????????????????? | | ????????# ? #????????????????? | | ????????###+#? < #????????????????? | | ?????????????? #????????????????? | | ??????????????####????????????????? | | ??????????????????????????????????? | | ??????????????????????????????????? | | ??????????????????????????????????? | | ??????????????????????????????????? | | ??????????????????????????????????? | | ??????????????????????????????????? | | | | | | | | | +----------------------------------------------------+ Best States ------------- Heat Dissipation 48 Energy Generation 10 Energy Capacity 250 Matter Stores 300 Matter Capacity 300 Sight Range 18 Terrain Scan Density 10 Armor Coverage 225 Evasion (%) 55 Recoil Reduction 1 Item Schematics ----------------- None Robot Schematics ------------------ None Fabricated ------------ Nothing Alien Tech Used ----------------- None Achievements -------------- None Challenges ------------ None Game ------ Seed RecoilSuperdenseDerivative Manual? 0 Play Time 00:39:50 Cumulative 67.0 hours Start 2024.09.06 @ 21:26:10 End 2024.09.06 @ 22:40:11 Sessions 3 Manual Loads 0 Difficulty Rogue Special Mode None Game No. 40 Rogue 40 Adventurer 0 Explorer 0 Win Type - Total 0 Types 0/0/0/0/0/0/0/0/0 Lore% 26 Gallery% 27 Achievement% 32 Wizard Run 0 Options --------- Layout 0 ASCII 0 Keyboard 0 Movement Mouse Keybinds 0 Fullscreen 1 Font 16/SmallcapsGlow Map View 37x27 Zoom Use 84% Tactical HUD 1 Map Filters NONE Filters NONE Steam X RUN: dee1e29f-eb14-4f7b-be23-192afa4623ec